bitfinex-derivatives/quotes_ETHF0:USTF0_20251021
["timestamp","ask_amount","ask_price","bid_price","bid_amount"]
[1761053648176,0.00198154,3875.7,3875.6,0.1823]
[1761053649283,0.3218,3875.6,3875.5,9.32107536]
[1761053649779,0.3218,3875.6,3875.5,9.78540536]
[1761053649981,0.32378154,3875.7,3875.5,10.65900019]
[1761053650180,0.00198154,3875.7,3875.6,0.87359483]
[1761053650481,0.00198154,3875.7,3875.6,0.1823]
[1761053651281,0.32378154,3875.7,3875.6,0.1823]
[1761053651882,0.00198154,3875.7,3875.6,0.1823]
[1761053652279,0.00198154,3875.7,3875.5,9.78540536]
[1761053652280,0.32378154,3875.7,3875.5,9.78540536]
[1761053652786,0.32378154,3875.7,3875.5,9.96770536]
[1761053652972,0.32378154,3875.7,3875.5,9.32107536]
[1761053653174,0.32378154,3875.7,3875.5,10.01191308]
[1761053653383,0.46630154,3875.7,3875.5,9.32107536]
[1761053653678,0.3218,3875.2,3874.7,0.1823]
[1761053653880,0.3218,3875.2,3874.8,9.32]
[1761053654075,0.3218,3874.9,3874.8,10.01083772]
[1761053654270,0.3218,3874.9,3874.8,9.32]
[1761053654576,0.3218,3874.9,3874.8,9.32192512]
[1761053654784,0.3218,3874.9,3874.8,10.01276284]
[1761053655284,0.3218,3874.9,3874.8,9.32192512]
[1761053655484,0.3218,3874.9,3874.8,10.01276284]
[1761053655889,0.3218,3874.9,3874.8,9.32192512]
[1761053658086,0.3218,3874.9,3874.8,0.00192512]
[1761053658481,5.3218,3874.9,3874.8,0.00192512]
[1761053659185,0.3218,3874.9,3874.8,0.00192512]
[1761053659483,0.3282,3875.3,3874.8,0.18412512]
[1761053659688,0.3282,3875.3,3875.0,0.46439]
[1761053660185,0.3282,3875.2,3875.0,0.46439]
[1761053661785,0.3282,3875.2,3874.8,0.00192512]
[1761053661986,0.3282,3875.1,3874.8,0.00192512]
[1761053662290,0.3282,3875.1,3874.8,0.46633512]
[1761053662689,0.3282,3875.1,3874.8,0.00192512]
[1761053662891,0.3282,3875.0,3874.8,0.00192512]
[1761053663086,0.3282,3875.0,3874.8,0.46634512]
[1761053663484,0.3282,3874.9,3874.8,0.00192512]
[1761053663685,5.3282,3874.9,3874.8,0.00192512]
[1761053664083,0.3282,3874.9,3874.8,0.00192512]
[1761053664278,41.1282,3874.9,3874.8,0.00192512]
[1761053665990,0.3282,3874.9,3874.8,0.00192512]
[1761053666383,0.3282,3875.2,3875.0,0.64659]
[1761053666584,0.3282,3875.4,3875.1,0.69083772]
[1761053666784,0.3282,3874.9,3874.8,0.00192512]
[1761053667187,0.3282,3874.9,3874.8,0.87496284]
[1761053667393,0.3282,3875.1,3874.9,0.1822]
[1761053667592,0.3282,3875.1,3874.8,10.03576284]
[1761053668192,0.3282,3875.1,3874.9,1.33753772]
[1761053668392,0.3194,3875.4,3875.1,0.1823]
[1761053668584,0.3194,3875.3,3875.1,0.87313772]
[1761053669289,0.3194,3875.3,3874.9,0.4644]
[1761053669290,0.3194,3875.3,3874.9,2.03126506]
[1761053669496,0.3194,3875.3,3875.2,0.69226534]
[1761053669689,0.3194,3875.2,3875.1,0.69226534]
[1761053669889,0.3194,3875.2,3874.9,0.4644]
[1761053670101,0.3194,3875.2,3874.9,0.6467]
[1761053670302,0.3194,3875.2,3875.1,0.3646]
[1761053670606,0.5354,3875.2,3875.1,0.3646]
[1761053671407,0.5354,3875.2,3875.1,1.74916506]
[1761053671705,2.4563,3877.0,3875.6,0.3646]
[1761053671706,0.32138154,3875.7,3875.6,0.3646]
[1761053672399,0.32138154,3875.7,3875.6,0.5469]
[1761053672597,0.00198154,3875.7,3875.6,0.5469]
[1761053672901,0.00198154,3875.7,3875.6,0.1823]
[1761053674703,0.3194,3876.4,3875.7,0.1823]
[1761053674907,0.3194,3876.4,3876.3,0.92532943]
[1761053675506,0.3194,3876.4,3876.3,1.28992943]
[1761053675703,0.321399,3876.4,3876.3,0.3646]
[1761053676099,0.001999,3876.4,3876.3,5.5469]
[1761053676302,0.1355,3877.5,3877.1,0.5469]
[1761053676303,0.3194,3877.2,3877.1,0.5469]
[1761053676599,0.7474,3877.1,3877.0,9.331]
[1761053676804,1.34705,3877.0,3876.9,0.92478155]
[1761053677309,0.67317138,3877.0,3876.9,1.28938155]
[1761053678207,0.67317138,3877.0,3876.9,1.49250283]
[1761053679215,0.45717138,3877.0,3876.9,1.49250283]
[1761053680311,0.88517138,3877.0,3876.8,0.92478155]
[1761053680608,1.21159,3876.7,3876.6,10.02442616]
[1761053680812,1.21159,3876.7,3876.6,9.332]
[1761053682105,0.46424,3876.3,3876.2,0.69242616]
[1761053682308,1.21166,3876.1,3876.0,0.92478155]
[1761053682609,0.7837,3875.8,3875.7,6.128]
[1761053683508,0.7837,3875.8,3875.3,0.69251407]
[1761053683509,0.91925,3875.4,3875.3,0.69251407]
[1761053683708,0.91925,3875.4,3874.8,1.38909007]
[1761053683709,0.78377,3875.2,3875.0,0.69251407]
[1761053683913,0.78377,3875.2,3874.8,0.92670667]
[1761053683914,0.3194,3874.9,3874.8,0.69443919]
[1761053684109,0.3194,3874.9,3874.8,0.00192512]
[1761053684412,0.3194,3875.2,3875.0,0.46439]
[1761053684602,0.3194,3875.2,3875.1,0.69257465]
[1761053685008,0.3194,3875.6,3875.4,0.46434]
[1761053685304,0.4549,3875.4,3875.3,0.92344285]
[1761053686308,0.4549,3875.4,3875.2,9.333]
[1761053686309,0.78376,3875.3,3875.2,9.333]
[1761053686702,0.78381,3874.9,3874.8,0.6945372]
[1761053686907,0.78381,3874.9,3874.8,2.512e-05]
[1761053687313,5.78381,3874.9,3874.8,2.512e-05]
[1761053687505,5.78381,3874.9,3873.7,1.59837974]
[1761053687506,0.46453,3873.9,3873.7,0.69261208]
[1761053687812,0.3194,3873.8,3873.7,0.69261208]
[1761053688509,0.3194,3873.8,3873.4,0.69261208]
[1761053688510,0.46457,3873.5,3873.4,0.69261208]
[1761053688718,0.46457,3873.5,3873.4,0.00252352]
[1761053689014,0.1355,3873.6,3873.4,0.00252352]
[1761053689221,0.3194,3873.7,3873.4,0.00252352]
[1761053689404,0.3194,3873.5,3873.4,0.00252352]
[1761053690112,0.3194,3873.7,3873.4,0.18672352]
[1761053690312,40.80274734,3873.8,3873.6,0.64876]
[1761053690508,40.80274734,3873.8,3873.7,0.87681208]
[1761053691115,0.00274734,3873.8,3873.7,15.45764285]
[1761053691327,0.3194,3874.7,3874.4,0.64867]
[1761053691512,0.3194,3874.7,3874.5,0.64864]
[1761053691816,0.3194,3875.3,3874.5,0.1842]
[1761053692018,0.3194,3875.0,3874.6,0.46444]
[1761053692216,0.3194,3875.0,3874.4,0.69141497]
[1761053692417,0.32161637,3875.0,3874.5,0.1842]
[1761053692809,0.3194,3875.6,3874.9,0.1842]
[1761053693015,0.3194,3875.6,3875.4,0.1842]
[1761053693218,0.3194,3875.6,3875.4,1.33995497]
[1761053693412,0.3194,3875.6,3875.3,0.69141497]
[1761053693716,41.1683,3875.7,3875.6,0.1842]
[1761053693717,0.3683,3875.7,3875.6,0.1842]
[1761053694015,0.00187257,3875.7,3875.6,0.87561497]
[1761053694211,0.00187257,3875.7,3875.6,10.22661497]
[1761053694414,0.00187257,3875.7,3875.6,9.5352]
[1761053694914,0.00187257,3875.7,3875.6,10.22637399]
[1761053695116,0.32127257,3875.7,3875.6,0.69117399]
[1761053695322,0.32127257,3875.7,3875.6,10.04317399]
[1761053695617,0.3194,3875.3,3875.1,0.69117399]
[1761053695819,0.3194,3875.3,3875.0,0.69117399]
[1761053696019,0.3194,3875.2,3875.0,0.69117399]
[1761053696320,0.3194,3875.1,3874.9,8.15817399]
[1761053696510,0.3194,3875.0,3874.9,8.15817399]
[1761053697218,0.3194,3875.0,3874.9,0.69117399]
[1761053697418,1.2964,3875.4,3874.7,0.69117399]
[1761053697419,0.4549,3874.8,3874.7,0.69117399]
[1761053698619,41.2549,3874.8,3874.7,0.69117399]
[1761053698820,41.2549,3874.8,3874.6,10.04117399]
[1761053699022,0.3205,3874.7,3874.6,10.04117399]
[1761053700923,0.3205,3874.7,3874.0,0.69117399]
[1761053700924,0.785,3874.1,3874.0,0.69117399]
[1761053701125,0.3205,3874.0,3873.9,0.69117399]
[1761053701615,0.78503,3873.9,3873.8,9.345]
[1761053701816,1.29584,3874.2,3873.4,0.00252352]
[1761053701817,0.78507,3873.5,3873.4,0.00252352]
[1761053702216,41.58507,3873.5,3873.4,0.00252352]
[1761053702719,40.8,3873.5,3873.4,0.87739751]
[1761053703226,41.1205,3873.5,3873.4,0.6934828]
[1761053703418,41.1205,3873.5,3873.4,0.00252352]
[1761053703818,41.1205,3873.5,3873.4,0.6934828]
[1761053704228,41.1205,3873.5,3873.4,0.00252352]
[1761053704423,41.58507,3873.5,3873.4,0.00252352]
[1761053704823,41.1205,3873.5,3873.4,0.00252352]
[1761053705418,46.1205,3873.5,3873.4,0.00252352]
[1761053705619,0.78521,3872.4,3872.3,3.9]
[1761053705824,0.78521,3872.4,3872.3,3.73605056]
[1761053705825,0.91981,3872.4,3872.3,3.73605056]
[1761053706223,41.71981,3872.4,3872.3,3.73605056]
[1761053706632,41.72227523,3872.4,3872.3,3.73814892]
[1761053706934,41.72227523,3872.4,3872.3,0.00209836]
[1761053707129,41.25756523,3872.4,3872.3,0.00209836]
[1761053707628,0.00246523,3872.4,3872.3,0.18579836]
[1761053707827,0.3205,3873.2,3872.4,0.1837]
[1761053708130,1.16111,3874.7,3872.3,5.00209836]
[1761053708131,0.3205,3874.0,3873.6,0.1837]
[1761053708328,0.3205,3873.9,3873.6,9.367]
[1761053708640,0.3205,3873.7,3873.6,9.367]
[1761053708821,0.00246086,3873.7,3873.6,9.5507]
[1761053709223,0.00246086,3873.7,3873.6,10.01526]
[1761053709422,0.3205,3874.6,3873.7,0.1837]
[1761053709626,0.3205,3874.5,3874.2,0.46449]
[1761053709833,0.3205,3874.5,3874.3,9.378]
[1761053710326,0.32324695,3874.5,3874.3,9.84247]
[1761053710533,0.3205,3874.4,3874.3,9.378]
[1761053710831,0.3205,3874.4,3873.5,1.38282994]
[1761053710832,0.3205,3874.4,3873.8,0.69045748]
[1761053711034,0.4551,3873.8,3873.7,9.375]
[1761053711626,0.3205,3873.7,3873.5,0.69045748]
[1761053711830,41.39915,3873.8,3873.4,0.69045748]
[1761053711831,0.3205,3873.6,3873.4,0.69045748]
[1761053712023,0.1346,3873.1,3873.0,0.69045748]
[1761053712223,0.1346,3873.1,3872.8,0.92188662]
[1761053712224,0.3205,3872.9,3872.8,0.69045748]
[1761053712736,0.3205,3873.7,3873.0,0.46463]
[1761053713031,0.3205,3873.5,3873.3,0.6915972]
[1761053713429,0.3205,3873.4,3873.3,0.6915972]
[1761053713819,0.46458,3873.5,3873.1,10.30488662]
[1761053713820,0.7851,3873.3,3873.2,0.6915972]
[1761053714035,0.91972,3873.1,3873.0,0.6915972]
[1761053714331,0.3205,3872.8,3872.7,0.6915972]
[1761053714530,0.3205,3872.6,3872.5,0.92188662]
[1761053714836,41.1205,3872.6,3872.5,0.92188662]
[1761053715237,0.3205,3872.6,3872.5,0.92188662]
[1761053715439,0.3205,3872.5,3872.4,0.92188662]
[1761053716141,0.4551,3872.4,3872.3,9.38509836]
[1761053716431,0.4551,3872.4,3872.3,0.00209836]
[1761053716835,41.1205,3872.6,3872.3,0.00209836]
[1761053717138,0.3205,3872.5,3872.3,0.00209836]
[1761053717335,0.4551,3872.4,3872.3,0.00209836]
[1761053719429,0.4551,3872.4,3871.4,0.67466291]
[1761053719430,0.3236,3871.6,3871.3,0.69184701]
[1761053719631,0.3236,3870.9,3870.5,7.20084701]
[1761053719840,0.3236,3870.9,3870.6,0.46492]
[1761053720030,0.3236,3870.9,3870.5,7.20084701]
[1761053720235,0.3236,3870.9,3870.6,0.1837]
[1761053720433,0.32574651,3870.9,3870.6,0.87795939]
[1761053720633,0.3236,3870.8,3870.6,0.00241238]
[1761053720834,0.4649,3870.8,3870.6,0.69425939]
[1761053721030,40.80214651,3870.9,3870.6,0.69425939]
[1761053721231,0.4649,3870.8,3870.6,0.00241238]
[1761053721439,0.78851,3870.8,3870.6,0.00241238]
[1761053721742,0.3236,3870.8,3870.6,0.00241238]
[1761053722239,40.80214651,3870.9,3870.8,0.4649]
[1761053722443,0.00214651,3870.9,3870.8,0.6486]
[1761053722739,0.00214651,3870.9,3870.8,1.34044701]
[1761053722941,0.46476,3872.0,3871.4,0.46482]
[1761053723140,0.3236,3871.6,3871.1,0.68971964]
[1761053723439,0.3236,3871.3,3870.8,0.46489]
[1761053723640,0.3236,3871.3,3870.7,0.68971964]
[1761053723641,0.3236,3871.2,3870.7,0.68971964]
[1761053723844,0.3236,3870.9,3870.6,0.00241238]
[1761053724039,0.1386,3871.0,3870.6,0.00241238]
[1761053724234,0.3236,3870.7,3870.6,0.00241238]
[1761053724745,0.32683551,3871.2,3870.6,0.00241238]
[1761053724947,0.4649,3870.8,3870.6,0.69242105]
[1761053725240,0.3236,3870.7,3870.6,0.00241238]
[1761053725433,0.3236,3870.9,3870.6,0.46732238]
[1761053725636,0.00323551,3871.2,3870.6,0.00241238]
[1761053725836,0.32683551,3871.2,3870.8,0.1837]
[1761053726042,0.32683551,3871.2,3871.1,0.1837]
[1761053726043,0.00323551,3871.2,3871.1,0.1837]
[1761053726246,0.00323551,3871.2,3871.1,9.6027]
[1761053726640,0.00323551,3871.2,3871.1,15.52232574]
[1761053726945,0.00323551,3871.2,3871.1,14.6027]
[1761053727936,0.3452,3872.3,3871.8,1.16195]
[1761053728138,0.46459,3873.4,3872.9,0.46464]
[1761053728349,0.1336,3873.1,3872.5,0.69063483]
[1761053728644,0.1336,3873.1,3872.2,0.69063483]
[1761053728645,0.3452,3872.3,3872.2,0.69063483]
[1761053728854,0.34846584,3872.3,3872.2,0.69063483]
[1761053729053,0.00326584,3872.3,3872.2,0.87463483]
[1761053729240,0.00326584,3872.3,3872.2,0.184]
[1761053729553,0.00326584,3872.3,3872.2,1.56682994]
[1761053729756,0.1336,3873.1,3872.4,0.184]
[1761053730054,0.3452,3873.1,3872.9,0.46464]
[1761053730348,0.3452,3873.6,3873.2,0.46461]
[1761053730550,0.60314,3873.8,3873.2,0.46461]
[1761053730551,0.1386,3873.8,3873.2,0.87495703]
[1761053730737,0.00215924,3873.8,3873.6,0.46455]
[1761053730937,0.3452,3873.7,3873.6,0.46766538]
[1761053731142,0.3452,3873.7,3873.6,1.15862241]
[1761053731343,0.00215924,3873.8,3873.6,1.15862241]
[1761053731547,0.00215924,3873.8,3873.7,0.69123928]
[1761053732049,0.00215924,3873.8,3873.7,0.89961277]
[1761053732247,0.46669924,3873.8,3873.7,0.69123928]
[1761053732450,0.00215924,3873.8,3873.6,0.00311538]
[1761053733044,0.00215924,3873.8,3873.6,0.46767538]
[1761053733240,0.00215924,3873.8,3873.7,0.69123928]
[1761053733552,1.16074,3875.9,3874.7,0.46442]
[1761053733844,1.16074,3875.9,3874.2,1.16122]
[1761053733845,0.46438,3875.1,3874.6,0.46444]
[1761053734054,0.46438,3875.1,3874.5,0.46444]
[1761053734349,1.16081,3875.6,3874.7,0.46442]
[1761053734655,0.4644,3875.0,3874.7,0.46442]
[1761053734946,1.1609,3875.3,3874.3,0.69098816]
[1761053735148,0.46446,3874.5,3874.4,9.42]
[1761053735350,0.46447,3874.4,3874.2,9.419]
[1761053735553,0.46445,3874.6,3874.2,9.419]
[1761053735746,0.46439,3875.0,3874.6,0.46444]
[1761053736049,1.16084,3875.5,3874.4,0.46446]
[1761053736244,1.1609,3875.3,3874.2,9.419]
[1761053736446,0.46447,3874.4,3874.2,9.419]
[1761053736646,0.00215585,3875.6,3874.2,9.419]
[1761053736951,0.00215585,3875.6,3874.7,0.46442]
[1761053737145,40.8,3875.5,3874.4,1.16117]
[1761053737348,40.8,3875.5,3875.3,0.46435]
[1761053737558,0.00215585,3875.6,3875.5,0.46433]
[1761053737744,0.00215585,3875.6,3875.1,1.16096]
[1761053737745,0.9105663,3878.5,3875.7,1.16077]
[1761053737948,0.46415,3877.1,3876.7,0.46418]
[1761053738252,0.04490123,3878.3,3877.2,0.46412]
[1761053738442,0.04490123,3878.3,3875.9,0.68995994]
[1761053738443,40.8,3878.2,3877.3,7.357]
[1761053738756,41.17239648,3878.2,3877.4,7.356]
[1761053738943,41.17239648,3878.2,3877.3,0.00320666]
[1761053739143,0.46404,3878.0,3877.4,9.8911]
[1761053739348,41.63641648,3878.2,3877.4,9.427]
[1761053739548,0.46404,3878.0,3877.6,0.46407]
[1761053740056,0.46405,3877.9,3877.6,0.46407]
[1761053740355,41.17239648,3878.2,3877.3,0.00320666]
[1761053740356,0.4641,3877.4,3877.3,0.00320666]
[1761053740748,5.4641,3877.4,3877.3,0.00320666]
[1761053741055,0.4641,3877.5,3877.3,0.00320666]
[1761053741363,41.17239648,3878.2,3877.4,0.4641]
[1761053741750,0.46404,3878.0,3877.6,0.46407]
[1761053741956,41.17239648,3878.2,3877.3,0.00320666]
[1761053742251,0.37239648,3878.2,3878.0,0.46403]
[1761053743956,0.37239648,3878.2,3877.9,0.46404]
[1761053744150,0.46405,3877.9,3877.4,0.4641]
[1761053744354,0.37239648,3878.2,3878.1,0.46402]
[1761053744549,0.37239648,3878.2,3877.9,9.88804]
[1761053744856,0.37239648,3878.2,3878.0,0.46403]
[1761053745750,1.15955,3879.8,3878.3,0.46399]
[1761053745953,1.15964,3879.6,3878.3,0.46399]
[1761053746151,1.15968,3879.4,3877.0,0.68995994]
[1761053746350,1.15971,3879.3,3877.4,7.471]
[1761053746548,1.15971,3879.3,3877.5,9.421]
[1761053746753,0.46401,3878.2,3877.7,0.46406]
[1761053747053,1.15977,3879.1,3877.8,0.46405]
[1761053747351,0.46399,3878.4,3877.8,0.46405]
[1761053747661,0.46397,3878.6,3877.2,1.16032]
[1761053747951,0.00240363,3879.3,3877.2,1.16031]
[1761053747952,1.15976,3879.1,3877.2,1.16031]
[1761053748153,0.46392,3879.0,3878.2,0.464]
[1761053748348,0.00240363,3879.3,3878.2,1.96]
[1761053748548,0.46394,3878.8,3878.2,2.42401]
[1761053748749,0.46393,3878.9,3878.2,1.96]
[1761053748949,0.00240363,3879.3,3878.2,2.424]
[1761053749152,0.00240363,3879.3,3878.2,1.96]
[1761053749555,0.46394,3878.8,3878.4,0.46397]
[1761053749951,0.00240363,3879.3,3878.6,0.46396]
[1761053750759,0.46393,3878.9,3878.6,0.46396]
[1761053751058,0.00240363,3879.3,3878.4,0.46398]
[1761053751461,0.46395,3878.8,3878.5,0.46397]
[1761053751662,0.46392,3879.0,3878.7,0.46394]
[1761053751854,0.46392,3879.0,3878.8,0.46393]
[1761053752050,0.46393,3878.9,3878.6,0.46395]
[1761053752272,1.15975,3879.2,3877.3,0.00320666]
[1761053752455,0.46394,3878.8,3877.4,5.477]
[1761053752650,0.46394,3878.8,3878.5,0.46396]
[1761053752960,0.46394,3878.8,3878.6,0.46396]
[1761053753261,0.4639,3879.1,3878.9,0.46392]
[1761053753448,0.4639,3879.1,3878.0,1.16009]
[1761053753449,0.46628363,3879.3,3877.4,5.477]
[1761053753653,0.00240363,3879.3,3879.1,0.4639]
[1761053753857,0.46628363,3879.3,3879.1,0.4639]
[1761053754064,0.00240363,3879.3,3878.3,9.401]
[1761053754365,1.15976,3879.1,3878.1,0.46401]
[1761053754566,0.46397,3878.6,3878.3,0.464]
[1761053754866,0.46399,3878.4,3878.2,0.46401]
[1761053755064,0.00240363,3879.3,3877.6,8.932]
[1761053755269,0.00240363,3879.3,3878.0,1.16009]
[1761053755462,0.46393,3878.9,3878.7,0.46395]
[1761053756266,0.46391,3879.1,3878.8,0.46394]
[1761053756476,0.46391,3879.0,3878.8,0.46394]
[1761053756668,0.00240363,3879.3,3877.7,1.16017]
[1761053756972,0.46396,3878.6,3878.4,0.46398]
[1761053757173,0.46395,3878.8,3878.5,0.46397]
[1761053757374,0.46395,3878.7,3878.4,0.46398]
[1761053757564,0.46395,3878.7,3877.8,8.82413]
[1761053757765,0.46396,3878.6,3877.8,8.82413]
[1761053757966,0.46395,3878.7,3878.4,0.46398]
[1761053758274,0.46394,3878.8,3878.6,0.46396]
[1761053758872,0.46396,3878.7,3877.8,1.16015]
[1761053759173,0.46396,3878.7,3878.5,0.46397]
[1761053759371,0.4639,3879.1,3878.8,0.46393]
[1761053759574,0.00240363,3879.3,3878.1,1.16006]
[1761053759575,0.46393,3878.9,3878.7,0.46395]
[1761053759771,0.00240363,3879.3,3878.6,0.46395]
[1761053759977,0.46395,3878.7,3878.4,0.46397]
[1761053760176,0.46395,3878.7,3878.5,0.46397]
[1761053760377,0.46395,3878.7,3877.9,9.08]
[1761053760378,0.46396,3878.7,3878.4,0.46398]
[1761053760578,0.46396,3878.6,3878.4,0.46398]
[1761053760975,0.46391,3879.0,3878.7,0.46394]
[1761053761179,0.46391,3879.0,3878.7,0.46395]
[1761053761378,0.46395,3878.8,3878.5,0.46396]
[1761053761571,0.46395,3878.7,3878.4,0.46397]
[1761053761768,0.46628363,3879.3,3878.3,1.16]
[1761053761972,1.15921,3881.0,3878.6,1.15991]
[1761053762175,1.15914,3881.2,3879.4,1.15967]
[1761053762377,1.15913,3881.3,3879.6,1.15961]
[1761053762674,0.46373,3880.6,3879.6,1.1596]
[1761053762874,40.8,3881.1,3879.9,1.15951]
[1761053763075,40.80181765,3881.1,3880.1,1.15946]
[1761053763276,40.80181765,3881.1,3880.6,0.46371]
[1761053763471,40.80181765,3881.1,3880.7,0.46371]
[1761053763668,40.80181765,3881.1,3880.4,0.46374]
[1761053763874,1.15919,3881.0,3880.1,0.00312533]
[1761053764077,0.46376,3880.3,3880.2,6.469]
[1761053764584,0.46373,3880.6,3880.2,6.469]
[1761053764783,0.4637,3880.8,3880.2,6.469]
[1761053764981,0.46547765,3881.1,3880.4,0.46374]
[1761053765286,0.46369,3880.9,3880.4,0.46374]
[1761053765487,0.00181765,3881.1,3880.4,0.46374]
[1761053765671,0.46374,3880.5,3880.3,0.68995994]
[1761053765876,0.46377,3880.2,3880.1,0.00312533]
[1761053767072,0.00181765,3881.1,3880.1,0.00312533]
[1761053767275,0.00181765,3881.1,3880.4,0.68995994]
[1761053767473,0.46368,3881.0,3880.6,0.46372]
[1761053767676,40.80181765,3881.1,3880.6,0.68995994]
[1761053767885,0.00181765,3881.1,3880.6,0.68995994]
[1761053768073,0.00181765,3881.1,3880.9,0.46368]
[1761053768277,2.31722,3883.0,3880.7,10.55028]
[1761053768278,0.46352,3882.4,3881.2,1.15912]
[1761053768479,0.46352,3882.3,3881.9,0.46356]
[1761053768777,0.46352,3882.3,3882.0,1.15378296]
[1761053768983,40.8,3882.7,3882.2,0.46353]
[1761053769189,40.80315767,3882.7,3882.3,0.46352]
[1761053769374,40.80315767,3882.7,3881.9,1.15379296]
[1761053769879,0.4635,3882.5,3882.2,0.69023296]
[1761053770187,0.4635,3882.5,3882.0,0.92031062]
[1761053770188,0.46353,3882.2,3882.1,9.391]
[1761053770484,0.46353,3882.2,3882.1,10.08123296]
[1761053770786,0.46353,3882.2,3882.1,9.391]
[1761053771678,0.00315767,3882.7,3882.5,0.46349]
[1761053771879,0.4634,3883.3,3882.6,1.1517609]
[1761053772186,1.392,3884.6,3882.5,0.6882809]
[1761053772373,1.15841,3883.7,3882.5,0.6882809]
[1761053772575,1.15824,3884.2,3882.6,0.46348]
[1761053772773,0.46341,3883.2,3882.8,0.46345]
[1761053772972,0.46341,3883.2,3882.6,0.46347]
[1761053773182,0.46339,3883.4,3882.7,9.384]
[1761053773376,0.46337,3883.6,3882.7,9.384]
[1761053773576,0.46337,3883.6,3883.2,0.46341]
[1761053773782,1.16027584,3884.2,3883.2,0.20974112]
[1761053773988,0.4634,3883.4,3883.2,0.20974112]
[1761053774785,40.8,3883.9,3883.2,0.20974112]
[1761053774982,0.4634,3883.4,3883.2,0.00245339]
[1761053776688,5.4634,3883.4,3883.2,0.00245339]
[1761053776886,0.4634,3883.4,3883.2,0.00245339]
[1761053777093,1.15836,3883.8,3882.7,0.46346]
[1761053777292,0.46336,3883.7,3883.1,0.46342]
[1761053777489,40.8,3883.9,3882.7,1.15868]
[1761053777691,0.46336,3883.6,3883.2,0.46341]
[1761053777896,0.46339,3883.4,3882.9,0.46345]
[1761053778091,0.46339,3883.4,3883.0,0.46343]
[1761053778395,0.46338,3883.5,3883.1,0.46342]
[1761053778586,0.46337,3883.6,3882.9,0.00266054]
[1761053778786,0.46338,3883.5,3882.9,0.00266054]
[1761053778988,0.46339,3883.4,3882.9,0.46610054]
[1761053779183,0.4634,3883.3,3882.9,0.46610054]
[1761053779492,0.46335,3883.7,3883.4,0.46339]
[1761053779696,0.46337,3883.6,3883.2,0.4634]
[1761053779890,0.46338,3883.5,3883.0,0.46343]
[1761053780090,0.46338,3883.5,3883.1,0.46342]
[1761053780289,0.46338,3883.5,3883.2,0.46341]
[1761053780488,0.00201584,3884.2,3883.0,0.46343]
[1761053780489,0.46339,3883.4,3883.0,0.46343]
[1761053780689,0.46339,3883.4,3882.9,0.00266054]
[1761053780690,0.46341,3883.2,3883.1,9.372]
[1761053780889,1.1583,3884.0,3882.9,0.00266054]
[1761053780890,0.4634,3883.4,3882.9,0.46610054]
[1761053781090,0.4634,3883.3,3882.9,0.46610054]
[1761053781599,0.46338,3883.5,3883.0,0.46343]
[1761053781897,0.46339,3883.4,3883.0,0.46343]
[1761053782094,0.00201584,3884.2,3882.9,0.00266054]
[1761053782299,0.46531584,3884.2,3883.7,0.46335]
[1761053782502,0.46331,3884.1,3883.7,0.46335]
[1761053782793,0.00201584,3884.2,3884.0,0.46331]
[1761053783698,0.00201584,3884.2,3883.8,0.46334]
[1761053783908,0.46530584,3884.2,3883.9,0.46333]
[1761053784207,0.00201584,3884.2,3884.0,0.46331]
[1761053784391,0.46531584,3884.2,3883.8,0.46333]
[1761053784695,0.46331,3884.1,3883.8,0.46333]
[1761053784890,0.00201584,3884.2,3883.7,0.46335]
[1761053785086,0.4633,3884.1,3883.7,0.46335]
[1761053785792,0.4633,3884.1,3883.8,0.46333]
[1761053785988,0.46333,3883.9,3883.6,9.45635]
[1761053786193,0.46331,3884.1,3883.6,9.45636]
[1761053786400,0.00201584,3884.2,3883.6,8.993]
[1761053786700,0.46332,3884.0,3883.6,9.45636]
[1761053786900,0.00201584,3884.2,3883.6,9.45636]
[1761053786901,0.00201584,3884.2,3883.6,8.993]
[1761053787100,1.15838,3883.8,3883.2,9.225]
[1761053787296,0.4634,3883.4,3883.2,9.225]
[1761053787502,0.46344,3883.0,3882.9,0.00266054]
[1761053788592,6.1586,3883.0,3881.7,0.46359]
[1761053788797,6.1586,3883.0,3880.9,1.1592]
[1761053788798,0.46351,3882.4,3881.9,0.46356]
[1761053788995,40.8,3883.4,3881.6,1.286]
[1761053789594,0.46347,3882.7,3881.7,1.15898]
[1761053789894,1.15858,3883.1,3881.6,1.28815004]
[1761053790090,0.46353,3882.2,3881.6,0.00215004]
[1761053790301,40.8,3883.4,3880.5,1.84955327]
[1761053790302,9.376,3883.2,3880.5,1.84955327]
[1761053790505,0.46364,3881.4,3880.6,0.20709643]
[1761053790700,0.46364,3881.4,3880.8,0.46369]
[1761053790701,0.46363,3881.4,3880.8,0.46369]
[1761053790903,0.46363,3881.4,3880.5,1.425]
[1761053791099,1.15879,3882.4,3880.5,1.425]
[1761053791100,1.15893,3881.9,3880.5,1.425]
[1761053791299,0.46367,3881.1,3880.6,0.46372]
[1761053791501,1.15899,3881.7,3880.5,1.42755955]
[1761053791703,0.46368,3881.0,3880.5,1.42755955]
[1761053792003,0.00271247,3881.9,3880.5,1.42755955]
[1761053792004,1.16164247,3881.9,3880.5,1.42755955]
[1761053792207,0.46358,3881.8,3881.0,0.46367]
[1761053792401,0.00271247,3881.9,3880.5,1.42755955]
[1761053792904,1.15899,3881.7,3880.5,1.42755955]
[1761053793104,0.00271247,3881.9,3880.5,0.00255955]
[1761053793105,0.4637,3880.8,3880.5,0.00255955]
[1761053793296,0.46369,3880.9,3880.5,0.00255955]
[1761053793698,1.15901,3881.6,3880.5,0.00255955]
[1761053793895,0.46371,3880.7,3880.5,0.00255955]
[1761053794104,0.46383,3879.7,3879.1,0.4639]
[1761053794296,0.46381,3879.9,3879.0,8.886]
[1761053794497,0.4638,3880.0,3879.2,0.46388]
[1761053794811,0.46382,3879.8,3879.2,0.46388]
[1761053795005,0.46382,3879.8,3879.2,0.46711215]